fUSD/lending_fUSD_20240421
["ID","MTS","AMOUNT","RATE_DAILY","PERIOD"]
[323140237,1713707448676,-500.0,0.00017257,2]
[323140238,1713707448685,-637.33,0.00017257,2]
[323140239,1713707448694,-710.46,0.00017257,2]
[323140240,1713707448704,-345.28,0.00017257,2]
[323140241,1713707448713,-500.0,0.00017257,2]
[323140242,1713707448723,-500.0,0.00017257,2]
[323140243,1713707448732,-500.0,0.00017257,2]
[323140244,1713707448741,-438.0,0.00017257,2]
[323140245,1713707448750,-500.0,0.00017257,2]
[323140246,1713707448759,-500.0,0.00017257,2]
[323140247,1713707448768,-504.89,0.00017257,2]
[323140248,1713707448777,-500.0,0.00017257,2]
[323140249,1713707448786,-500.0,0.00017257,2]
[323140250,1713707448795,-168.86,0.00017257,2]
[323140251,1713707448804,-363.32,0.00017257,2]
[323140252,1713707448815,-195.44576082,0.00017257,2]
[323140253,1713707448824,-410.37,0.00017257,2]
[323140254,1713707448833,-500.0,0.00017257,2]
[323140255,1713707448842,-11348.69,0.00017257,2]
[323140256,1713707448851,-548.11,0.00017257,2]
[323140257,1713707448860,-800.01,0.00017257,2]
[323140258,1713707448870,-500.0,0.00017257,2]
[323140259,1713707448879,-500.0,0.00017257,2]
[323140260,1713707448887,-500.0,0.00017257,2]
[323140261,1713707448896,-500.0,0.00017257,2]
[323140262,1713707448906,-1304.44,0.00017257,2]
[323140263,1713707448914,-500.0,0.00017257,2]
[323140264,1713707448924,-859.05,0.00017257,2]
[323140265,1713707448933,-500.0,0.00017257,2]
[323140266,1713707448944,-912.21,0.00017257,2]
[323140267,1713707448954,-837.9,0.00017257,2]
[323140268,1713707448963,-647.98,0.00017257,2]
[323140269,1713707448972,-500.0,0.00017257,2]
[323140270,1713707448982,-495.58783549,0.00017257,2]
[323140271,1713707449001,-509.88216451,0.00017257,2]
[323140272,1713707449011,-141.79024831,0.00017257,2]
[323140273,1713707449022,-359.45574608,0.00017257,2]
[323140274,1713707449033,-3056.26400561,0.00017257,2]
[323140275,1713707449042,-1035.77,0.00017257,2]
[323140276,1713707449052,-500.0,0.00017257,2]
[323140277,1713707449063,-777.16,0.00017257,2]
[323140278,1713707449073,-500.0,0.00017257,2]
[323140279,1713707449083,-600.9059944,0.00017257,2]
[323140280,1713707449107,-18.4740056,0.00017257,2]
[323140281,1713707449116,-837.69,0.00017257,2]
[323140282,1713707449127,-976.86,0.00017257,2]
[323140283,1713707449136,-982.42,0.00017257,2]
[323140284,1713707449146,-218.86923436,0.00017257,2]
[323140285,1713707449165,-448.48874592,0.00017257,2]
[323140286,1713707449177,-357.24201972,0.00017257,2]
[323140287,1713707449186,-500.0,0.00017257,2]
[323140288,1713707449199,-57.01213048,0.00017257,2]
[323140289,1713707449210,-265.34402344,0.00017257,2]
[323140290,1713707449233,-867.11384608,0.00017257,2]
[323140291,1713707449243,-205.98649278,0.00017257,2]
[323140292,1713707449267,-500.0,0.00016984,2]
[323140293,1713707449277,-1865.50350722,0.00017257,2]
[323140294,1713707449286,-1571.81,0.00017257,2]
[323140295,1713707449296,-1022.31,0.00017257,2]
[323140296,1713707449305,-1773.08,0.00017257,2]
[323140297,1713707449317,-2949.54,0.00017257,2]
[323140298,1713707449327,-500.0,0.00017257,2]
[323140299,1713707449336,-1455.34,0.00017257,2]
[323140300,1713707449346,-1689.47,0.00017257,2]
[323140301,1713707449356,-500.0,0.00017257,2]
[323140302,1713707449366,-500.0,0.00017257,2]
[323140303,1713707449375,-1616.12,0.00017257,2]
[323140304,1713707449384,-500.0,0.00017257,2]
[323140305,1713707449394,-500.0,0.00017257,2]
[323140306,1713707449404,-600.65,0.00017257,2]
[323140307,1713707449414,-1201.38,0.00017257,2]
[323140308,1713707449423,-500.0,0.00017257,2]
[323140309,1713707449434,-735.22,0.00017257,2]
[323140310,1713707449444,-500.0,0.00017257,2]
[323140311,1713707449454,-500.0,0.00017257,2]
[323140312,1713707449464,-27.75634291,0.00017257,2]
[323140313,1713707449487,-1390.32365709,0.00017257,2]
[323140314,1713707449496,-1166.71925127,0.00017257,2]
[323140315,1713707449507,-75.48074873,0.00017257,2]
[323140316,1713707449517,-915.61978014,0.00017257,2]
[323140317,1713707449561,-709.90021986,0.00017257,2]
[323140318,1713707449570,-927.36,0.00017257,2]
[323140319,1713707449579,-1629.03,0.00017257,2]
[323140320,1713707449588,-500.0,0.00017257,2]
[323140321,1713707449599,-8494.27202269,0.00017258,2]
[323140322,1713707449656,-0.00104371,0.00017258,2]
[323140323,1713707449668,-21219.60119417,0.00017258,2]
[323140324,1713707449678,-155.0,0.00017258,2]
[323140325,1713707449687,-623.84,0.00017258,2]
[323140326,1713707449697,-605.56,0.00017258,2]
[323140327,1713707449706,-892.02,0.00017258,2]
[323140328,1713707449715,-603.85,0.00017258,2]
[323140329,1713707449725,-1203.37,0.00017258,2]
[323140330,1713707449735,-242.59,0.00017258,2]
[323140331,1713707449745,-689.95,0.00017258,2]
[323140332,1713707449754,-595.79,0.00017258,2]
[323140333,1713707449765,-1118.52,0.00017258,2]
[323140334,1713707449774,-500.0,0.00017258,2]
[323140335,1713707449784,-1113.45,0.00017258,2]
[323140336,1713707449794,-758.95,0.00017258,2]
[323140337,1713707449804,-538.92,0.00017258,2]
[323140338,1713707449815,-518.26,0.00017258,2]
[323140339,1713707449825,-500.0,0.00017258,2]
[323140340,1713707449834,-500.0,0.00017258,2]
[323140341,1713707449843,-905.09,0.00017258,2]
[323140342,1713707449853,-500.0,0.00017258,2]
[323140343,1713707449863,-500.0,0.00017258,2]
[323140344,1713707449873,-450.34,0.00017258,2]
[323140345,1713707449882,-634.5,0.00017258,2]
[323140346,1713707449892,-500.0,0.00017258,2]
[323140347,1713707449901,-500.0,0.00017258,2]
[323140348,1713707449911,-216.49,0.00017258,2]
[323140349,1713707449922,-558.9,0.00017258,2]
[323140350,1713707449931,-500.0,0.00017258,2]
[323140351,1713707449941,-557.19419628,0.00017258,2]
[323140352,1713707449951,-500.0,0.00017258,2]
[323140353,1713707449961,-592.6,0.00017258,2]
[323140354,1713707449970,-804.41,0.00017258,2]
[323140355,1713707449979,-523.87,0.00017258,2]
[323140356,1713707449990,-396.66,0.00017258,2]
[323140357,1713707450001,-153.61,0.00017258,2]
[323140358,1713707450010,-611.49,0.00017258,2]
[323140359,1713707450019,-500.0,0.00017258,2]
[323140360,1713707450029,-665.96,0.00017258,2]
[323140361,1713707450038,-727.6,0.00017258,2]
[323140362,1713707450048,-500.0,0.00017258,2]
[323140363,1713707450057,-639.63,0.00017258,2]
[323140364,1713707450068,-664.11,0.00017258,2]
[323140365,1713707450077,-500.0,0.00017258,2]
[323140366,1713707450086,-500.0,0.00017258,2]
[323140367,1713707450096,-864.7,0.00017258,2]
[323140368,1713707450105,-500.0,0.00017258,2]
[323140369,1713707450115,-274.08,0.00017258,2]
[323140370,1713707450124,-417.789,0.00017258,2]
[323140371,1713707450134,-500.0,0.00017258,2]
[323140372,1713707450143,-925.58,0.00017258,2]
[323140373,1713707450153,-636.37,0.00017258,2]
[323140374,1713707450162,-4224.5,0.00017258,2]
[323140375,1713707450172,-214.4,0.00017258,2]
[323140376,1713707450181,-500.0,0.00017258,2]
[323140377,1713707450192,-2800.62,0.00017258,2]
[323140378,1713707450202,-1043.21,0.00017258,2]
[323140379,1713707450211,-500.0,0.00017258,2]
[323140380,1713707450221,-1597.37,0.00017258,2]
[323140381,1713707450230,-572.6936271,0.00017258,2]
[323140382,1713707450240,-1250.84,0.00017258,2]
[323140383,1713707450249,-607.21,0.00017258,2]
[323140384,1713707450259,-809.01,0.00017258,2]
[323140385,1713707450270,-699.92,0.00017258,2]
[323140386,1713707450279,-500.0,0.00017258,2]
[323140387,1713707450289,-1083.51,0.00017258,2]
[323140388,1713707450299,-500.0,0.00017258,2]
[323140389,1713707450311,-500.0,0.00017258,2]
[323140390,1713707450320,-500.0,0.00017258,2]
[323140391,1713707450330,-985.92,0.00017258,2]
[323140392,1713707450340,-5474.95,0.00017258,2]
[323140393,1713707450349,-500.0,0.00017258,2]
[323140394,1713707450358,-1158.52,0.00017258,2]
[323140395,1713707450368,-500.0,0.00017258,2]
[323140396,1713707450538,-500.0,0.00017258,2]
[323140397,1713707450548,-500.0,0.00017258,2]
[323140398,1713707450558,-500.0,0.00017258,2]
[323140399,1713707450569,-500.0,0.00017258,2]
[323140400,1713707450578,-500.0,0.00017258,2]
[323140401,1713707450588,-531.06,0.00017258,2]
[323140402,1713707450598,-194.52,0.00017258,2]
[323140403,1713707450608,-993.51,0.00017258,2]
[323140404,1713707450618,-500.0,0.00017258,2]
[323140405,1713707450627,-500.0,0.00017258,2]
[323140406,1713707450637,-802.39,0.00017258,2]
[323140407,1713707450647,-622.46,0.00017258,2]
[323140408,1713707450656,-500.0,0.00017258,2]
[323140409,1713707450666,-500.0,0.00017258,2]
[323140410,1713707450676,-500.0,0.00017258,2]
[323140411,1713707450686,-545.32,0.00017258,2]
[323140412,1713707450696,-500.0,0.00017258,2]
[323140413,1713707450705,-500.0,0.00017258,2]
[323140414,1713707450715,-500.0,0.00017258,2]
[323140415,1713707450726,-1000.0,0.00017258,2]
[323140416,1713707450736,-1037.97,0.00017258,2]
[323140417,1713707450747,-603.9,0.00017258,2]
[323140418,1713707450756,-500.0,0.00017258,2]
[323140419,1713707450766,-500.0,0.00017258,2]
[323140420,1713707450776,-500.0,0.00017258,2]
[323140421,1713707450787,-1712.92,0.00017258,2]
[323140422,1713707450797,-500.0,0.00017258,2]
[323140423,1713707450807,-500.0,0.00017258,2]
[323140424,1713707450818,-500.0,0.00017259,2]
[323140425,1713707450828,-599.57,0.00017259,2]
[323140426,1713707450839,-500.0,0.00017259,2]
[323140427,1713707450849,-500.0,0.00017259,2]
[323140428,1713707450858,-611.86,0.00017259,2]
[323140429,1713707450869,-500.0,0.00017259,2]
[323140430,1713707450879,-500.0,0.00017259,2]
[323140431,1713707450889,-1085.48,0.00017259,2]
[323140432,1713707450899,-1244.62,0.00017259,2]
[323140433,1713707450909,-831.75,0.00017259,2]
[323140434,1713707450919,-500.0,0.00017259,2]
[323140435,1713707450929,-683.17,0.00017259,2]
[323140436,1713707450939,-500.0,0.00017259,2]
[323140437,1713707450948,-525.3,0.00017259,2]
[323140438,1713707450958,-500.0,0.0001726,2]
[323140439,1713707450967,-500.0,0.0001726,2]
[323140440,1713707450977,-500.0,0.0001726,2]
[323140441,1713707450987,-500.0,0.0001726,2]
[323140442,1713707450997,-500.0,0.0001726,2]
[323140443,1713707451006,-500.0,0.0001726,2]
[323140444,1713707451015,-500.0,0.0001726,2]
[323140445,1713707451025,-500.0,0.0001726,2]
[323140446,1713707451034,-500.0,0.0001726,2]
[323140447,1713707451044,-500.0,0.0001726,2]
[323140448,1713707451053,-500.0,0.0001726,2]
[323140449,1713707451065,-500.0,0.0001726,2]
[323140450,1713707451074,-500.0,0.0001726,2]
[323140451,1713707451084,-624.11,0.0001726,2]
[323140452,1713707451094,-642.34851573,0.0001726,2]
[323140453,1713707451104,-501.52,0.0001726,2]
[323140454,1713707451113,-500.0,0.0001726,2]
[323140455,1713707451123,-500.0,0.0001726,2]
[323140456,1713707451133,-554.86,0.0001726,2]
[323140457,1713707451143,-590.97,0.0001726,2]
[323140458,1713707451153,-500.0,0.0001726,2]
[323140459,1713707451163,-500.0,0.0001726,2]
[323140460,1713707451173,-500.0,0.0001726,2]
[323140461,1713707451183,-500.0,0.0001726,2]
[323140462,1713707451195,-500.0,0.0001726,2]
[323140463,1713707451204,-500.0,0.0001726,2]
[323140464,1713707451214,-500.0,0.0001726,2]
[323140465,1713707451223,-500.0,0.0001726,2]
[323140466,1713707451232,-500.0,0.0001726,2]
[323140467,1713707451242,-500.0,0.0001726,2]
[323140468,1713707451252,-507.08,0.0001726,2]
[323140469,1713707451261,-500.0,0.0001726,2]
[323140470,1713707451272,-500.0,0.0001726,2]
[323140471,1713707451282,-500.0,0.0001726,2]
[323140472,1713707451292,-537.42,0.0001726,2]
[323140473,1713707451302,-502.18,0.0001726,2]
[323140474,1713707451313,-500.0,0.0001726,2]
[323140475,1713707451325,-686.1,0.0001726,2]
[323140476,1713707451336,-500.0,0.0001726,2]
[323140477,1713707451346,-787.4,0.0001726,2]
[323140478,1713707451356,-500.0,0.0001726,2]
[323140479,1713707451366,-500.0,0.0001726,2]
[323140480,1713707451375,-546.29,0.0001726,2]
[323140481,1713707451385,-500.0,0.0001726,2]
[323140482,1713707451395,-2473.81,0.0001726,2]
[323140483,1713707451405,-500.0,0.0001726,2]
[323140484,1713707451415,-500.0,0.0001726,2]
[323140485,1713707451425,-500.0,0.0001726,2]
[323140486,1713707451435,-607.89,0.0001726,2]
[323140487,1713707451445,-500.0,0.0001726,2]
[323140488,1713707451454,-500.0,0.0001726,2]
[323140489,1713707451464,-666.05,0.0001726,2]
[323140490,1713707451474,-631.03,0.0001726,2]
[323140491,1713707451485,-643.31,0.0001726,2]
[323140492,1713707451496,-500.0,0.0001726,2]
[323140493,1713707451507,-500.0,0.0001726,2]
[323140494,1713707451518,-1118.62,0.0001726,2]
[323140495,1713707451528,-500.0,0.0001726,2]
[323140496,1713707451538,-500.0,0.0001726,2]
[323140497,1713707451548,-500.0,0.0001726,2]
[323140498,1713707451558,-500.0,0.0001726,2]
[323140499,1713707451570,-500.0,0.0001726,2]
[323140500,1713707451581,-500.0,0.0001726,2]
[323140501,1713707451593,-500.0,0.0001726,2]
[323140502,1713707451603,-500.0,0.0001726,2]
[323140503,1713707451613,-500.0,0.0001726,2]
[323140504,1713707451623,-500.0,0.0001726,2]
[323140505,1713707451633,-500.0,0.0001726,2]
[323140506,1713707451643,-500.0,0.0001726,2]
[323140507,1713707451653,-500.0,0.0001726,2]
[323140508,1713707451663,-745.95,0.0001726,2]
[323140509,1713707451674,-500.0,0.0001726,2]
[323140510,1713707451685,-500.0,0.0001726,2]
[323140511,1713707451697,-500.0,0.0001726,2]
[323140512,1713707451707,-500.0,0.0001726,2]
[323140513,1713707451718,-500.0,0.0001726,2]
[323140514,1713707451728,-611.47,0.0001726,2]
[323140515,1713707451739,-500.0,0.0001726,2]
[323140516,1713707451750,-500.0,0.0001726,2]
[323140517,1713707451760,-693.0,0.00017261,2]
[323140518,1713707451771,-1385.8947468,0.00017402,2]
[323140519,1713707451781,-391.93026172,0.0001743,2]
[323140520,1713707451792,-6607.93758856,0.00017434,2]
[323140521,1713707451801,-3290.12252339,0.00017474,2]
[323140522,1713707451813,-814.74,0.0001753,2]
[323140523,1713707451822,-1005.73,0.0001753,2]
[323140524,1713707451832,-623.41,0.0001753,2]
[323140525,1713707451843,-3477.15,0.0001753,2]
[323140526,1713707451854,-819.88,0.0001753,2]
[323140527,1713707451866,-998.0,0.0001753,2]
[323140528,1713707451877,-834.13,0.0001753,2]
[323140529,1713707451888,-2826.36,0.0001753,2]
[323140530,1713707451900,-509.31,0.0001753,2]
[323140531,1713707451910,-2110.56,0.0001753,2]
[323140532,1713707451921,-1229.48,0.0001753,2]
[323140533,1713707451932,-669.03,0.0001753,2]
[323140534,1713707451943,-610.7,0.0001753,2]
[323140535,1713707451953,-929.05,0.0001753,2]
[323140536,1713707451962,-500.0,0.00017531,2]
[323140537,1713707451972,-637.33,0.00017531,2]
[323140538,1713707451982,-710.46,0.00017531,2]
[323140539,1713707451992,-208.15,0.00017531,2]
[323140540,1713707452002,-500.0,0.00017531,2]
[323140541,1713707452013,-500.0,0.00017531,2]
[323140542,1713707452024,-500.0,0.00017531,2]
[323140543,1713707452035,-500.0,0.00017531,2]
[323140544,1713707452045,-467.87,0.00017531,2]
[323140545,1713707452056,-295.05,0.00017531,2]
[323140546,1713707452067,-387.73,0.00017531,2]
[323140547,1713707452078,-401.45997922,0.00017531,2]
[323140548,1713707452352,-10947.23002078,0.00017531,2]
[323140549,1713707452363,-548.11,0.00017531,2]
[323140550,1713707452374,-800.01,0.00017531,2]
[323140551,1713707452384,-500.0,0.00017531,2]
[323140552,1713707452394,-500.0,0.00017531,2]
[323140553,1713707452404,-500.0,0.00017531,2]
[323140554,1713707452413,-500.0,0.00017531,2]
[323140555,1713707452422,-1304.44,0.00017531,2]
[323140556,1713707452431,-500.0,0.00017531,2]
[323140557,1713707452440,-859.05,0.00017531,2]
[323140558,1713707452450,-500.0,0.00017531,2]
[323140559,1713707452459,-912.21,0.00017531,2]
[323140560,1713707452469,-837.9,0.00017531,2]
[323140561,1713707452480,-647.98,0.00017531,2]
[323140562,1713707452490,-500.0,0.00017531,2]
[323140563,1713707452501,-1005.47,0.00017531,2]
[323140564,1713707452512,-3557.51,0.00017531,2]
[323140565,1713707452523,-1035.77,0.00017531,2]
[323140566,1713707452533,-500.0,0.00017531,2]
[323140567,1713707452544,-777.16,0.00017531,2]
[323140568,1713707452555,-500.0,0.00017531,2]
[323140569,1713707452569,-619.38,0.00017531,2]
[323140570,1713707452580,-837.69,0.00017531,2]
[323140571,1713707452592,-976.86,0.00017531,2]
[323140572,1713707452602,-982.42,0.00017531,2]
[323140573,1713707452613,-1024.6,0.00017531,2]
[323140574,1713707452623,-500.0,0.00017531,2]
[323140575,1713707452633,-1189.47,0.00017531,2]
[323140576,1713707452644,-2071.49,0.00017531,2]
[323140577,1713707452654,-1571.81,0.00017531,2]
[323140578,1713707452664,-1022.31,0.00017531,2]
[323140579,1713707452674,-1773.08,0.00017531,2]
[323140580,1713707452683,-2949.54,0.00017531,2]
[323140581,1713707452693,-500.0,0.00017531,2]
[323140582,1713707452704,-1455.34,0.00017531,2]
[323140583,1713707452714,-1689.47,0.00017531,2]
[323140584,1713707452725,-500.0,0.00017531,2]
[323140585,1713707452735,-500.0,0.00017531,2]
[323140586,1713707452745,-1616.12,0.00017531,2]
[323140587,1713707452755,-500.0,0.00017531,2]
[323140588,1713707452766,-500.0,0.00017531,2]
[323140589,1713707452776,-600.65,0.00017531,2]
[323140590,1713707452786,-1201.38,0.00017531,2]
[323140591,1713707452795,-500.0,0.00017531,2]
[323140592,1713707452805,-735.22,0.00017531,2]
[323140593,1713707452816,-500.0,0.00017531,2]
[323140594,1713707452826,-500.0,0.00017531,2]
[323140595,1713707452835,-1418.08,0.00017531,2]
[323140596,1713707452845,-1242.2,0.00017531,2]
[323140597,1713707452854,-1625.52,0.00017531,2]
[323140598,1713707452864,-927.36,0.00017531,2]
[323140599,1713707452875,-1629.03,0.00017531,2]
[323140600,1713707452885,-500.0,0.00017531,2]
[323140601,1713707452894,-623.84,0.00017532,2]
[323140602,1713707452904,-605.56,0.00017532,2]
[323140603,1713707452963,-892.02,0.00017532,2]
[323140604,1713707452973,-603.85,0.00017532,2]
[323140605,1713707452984,-1203.37,0.00017532,2]
[323140606,1713707452995,-689.95,0.00017532,2]
[323140607,1713707453004,-595.79,0.00017532,2]
[323140608,1713707453014,-1118.52,0.00017532,2]
[323140609,1713707453024,-500.0,0.00017532,2]
[323140610,1713707453035,-1113.45,0.00017532,2]
[323140611,1713707453045,-758.95,0.00017532,2]
[323140612,1713707453055,-538.92,0.00017532,2]
[323140613,1713707453067,-267.9,0.00017532,2]
[323140614,1713707453077,-500.0,0.00017532,2]
[323140615,1713707453089,-905.09,0.00017532,2]
[323140616,1713707453100,-500.0,0.00017532,2]
[323140617,1713707453110,-500.0,0.00017532,2]
[323140618,1713707453122,-634.5,0.00017532,2]
[323140619,1713707453132,-500.0,0.00017532,2]
[323140620,1713707453142,-500.0,0.00017532,2]
[323140621,1713707453153,-558.9,0.00017532,2]
[323140622,1713707453163,-187.28,0.00017532,2]
[323140623,1713707453173,-500.0,0.00017532,2]
[323140624,1713707453184,-804.41,0.00017532,2]
[323140625,1713707453196,-523.87,0.00017532,2]
[323140626,1713707453206,-611.49,0.00017532,2]
[323140627,1713707453216,-500.0,0.00017532,2]
[323140628,1713707453227,-665.96,0.00017532,2]
[323140629,1713707453238,-727.6,0.00017532,2]
[323140630,1713707453248,-345.72,0.00017532,2]
[323140631,1713707453258,-639.63,0.00017532,2]
[323140632,1713707453268,-664.11,0.00017532,2]
[323140633,1713707453277,-398.69,0.00017532,2]
[323140634,1713707453287,-500.0,0.00017532,2]
[323140635,1713707453296,-864.7,0.00017532,2]
[323140636,1713707453305,-500.0,0.00017532,2]
[323140637,1713707453315,-500.0,0.00017532,2]
[323140638,1713707453324,-925.58,0.00017532,2]
[323140639,1713707453334,-636.37,0.00017532,2]
[323140640,1713707453343,-4224.5,0.00017532,2]
[323140641,1713707453354,-500.0,0.00017532,2]
[323140642,1713707453365,-2800.62,0.00017532,2]
[323140643,1713707453374,-1043.21,0.00017532,2]
[323140644,1713707453383,-500.0,0.00017532,2]
[323140645,1713707453393,-1597.37,0.00017532,2]
[323140646,1713707453402,-1250.84,0.00017532,2]
[323140647,1713707453411,-607.21,0.00017532,2]
[323140648,1713707453420,-809.01,0.00017532,2]
[323140649,1713707453429,-699.92,0.00017532,2]
[323140650,1713707453438,-500.0,0.00017532,2]
[323140651,1713707453447,-1083.51,0.00017532,2]
[323140652,1713707453457,-229.49,0.00017532,2]
[323140653,1713707453466,-500.0,0.00017532,2]
[323140654,1713707453475,-500.0,0.00017532,2]
[323140655,1713707453485,-985.92,0.00017532,2]
[323140656,1713707453494,-5474.95,0.00017532,2]
[323140657,1713707453503,-500.0,0.00017532,2]
[323140658,1713707453513,-1158.52,0.00017532,2]
[323140659,1713707453522,-500.0,0.00017532,2]
[323140660,1713707453531,-500.0,0.00017532,2]
[323140661,1713707453540,-500.0,0.00017532,2]
[323140662,1713707453549,-500.0,0.00017532,2]
[323140663,1713707453559,-500.0,0.00017532,2]
[323140664,1713707453569,-164.35,0.00017532,2]
[323140665,1713707453578,-531.06,0.00017532,2]
[323140666,1713707453588,-993.51,0.00017532,2]
[323140667,1713707453597,-500.0,0.00017532,2]
[323140668,1713707453606,-500.0,0.00017532,2]
[323140669,1713707453616,-802.39,0.00017532,2]
[323140670,1713707453627,-622.46,0.00017532,2]
[323140671,1713707453637,-500.0,0.00017532,2]
[323140672,1713707453647,-500.0,0.00017532,2]
[323140673,1713707453658,-500.0,0.00017532,2]
[323140674,1713707453668,-545.32,0.00017532,2]
[323140675,1713707453677,-500.0,0.00017532,2]
[323140676,1713707453686,-500.0,0.00017532,2]
[323140677,1713707453695,-500.0,0.00017532,2]
[323140678,1713707453705,-1037.97,0.00017532,2]
[323140679,1713707453714,-1000.0,0.00017532,2]
[323140680,1713707453723,-603.9,0.00017532,2]
[323140681,1713707453732,-500.0,0.00017532,2]
[323140682,1713707453742,-500.0,0.00017532,2]
[323140683,1713707453751,-500.0,0.00017532,2]
[323140684,1713707453760,-1712.92,0.00017532,2]
[323140685,1713707453770,-3257.91,0.00017533,2]
[323140686,1713707453779,-500.0,0.00017533,2]
[323140687,1713707453788,-500.0,0.00017533,2]
[323140688,1713707453798,-611.86,0.00017533,2]
[323140689,1713707453807,-500.0,0.00017533,2]
[323140690,1713707453818,-500.0,0.00017533,2]
[323140691,1713707453827,-1085.48,0.00017533,2]
[323140692,1713707453836,-1244.62,0.00017533,2]
[323140693,1713707453845,-831.75,0.00017533,2]
[323140694,1713707453855,-500.0,0.00017533,2]
[323140695,1713707453864,-683.17,0.00017533,2]
[323140696,1713707453874,-500.0,0.00017533,2]
[323140697,1713707453883,-525.3,0.00017533,2]
[323140698,1713707453893,-500.0,0.00017534,2]
[323140699,1713707453902,-500.0,0.00017534,2]
[323140700,1713707453911,-500.0,0.00017534,2]
[323140701,1713707453920,-500.0,0.00017534,2]
[323140702,1713707453929,-500.0,0.00017534,2]
[323140703,1713707453937,-500.0,0.00017534,2]
[323140704,1713707453945,-500.0,0.00017534,2]
[323140705,1713707453954,-500.0,0.00017534,2]
[323140706,1713707453961,-500.0,0.00017534,2]
[323140707,1713707453969,-500.0,0.00017534,2]
[323140708,1713707453977,-500.0,0.00017534,2]
[323140709,1713707453985,-500.0,0.00017534,2]
[323140710,1713707453994,-500.0,0.00017534,2]
[323140711,1713707454003,-624.11,0.00017534,2]
[323140712,1713707454012,-501.52,0.00017534,2]
[323140713,1713707454021,-500.0,0.00017534,2]
[323140714,1713707454030,-500.0,0.00017534,2]
[323140715,1713707454039,-554.86,0.00017534,2]
[323140716,1713707454048,-590.97,0.00017534,2]
[323140717,1713707454057,-500.0,0.00017534,2]
[323140718,1713707454071,-500.0,0.00017534,2]
[323140719,1713707454080,-500.0,0.00017534,2]
[323140720,1713707454089,-500.0,0.00017534,2]
[323140721,1713707454097,-500.0,0.00017534,2]
[323140722,1713707454107,-500.0,0.00017534,2]
[323140723,1713707454115,-500.0,0.00017534,2]
[323140724,1713707454123,-500.0,0.00017534,2]
[323140725,1713707454132,-500.0,0.00017534,2]
[323140726,1713707454141,-500.0,0.00017534,2]
[323140727,1713707454150,-507.08,0.00017534,2]
[323140728,1713707454159,-500.0,0.00017534,2]
[323140729,1713707454168,-500.0,0.00017534,2]
[323140730,1713707454177,-500.0,0.00017534,2]
[323140731,1713707454186,-537.42,0.00017534,2]
[323140732,1713707454197,-502.18,0.00017534,2]
[323140733,1713707454207,-500.0,0.00017534,2]
[323140734,1713707454216,-686.1,0.00017534,2]
[323140735,1713707454225,-500.0,0.00017534,2]
[323140736,1713707454234,-787.4,0.00017534,2]